bitfinex/quotes_ETHUSD_20251021
["timestamp","ask_amount","ask_price","bid_price","bid_amount"]
[1761074631326,1.5552,4013.0,4012.5,2.49219036]
[1761074631828,1.5552,4012.8,4012.5,0.4671]
[1761074632123,1.5552,4012.8,4012.3,2.4923312]
[1761074632322,1.5552,4012.8,4012.4,2.49226577]
[1761074632631,1.5552,4012.8,4012.2,0.4671]
[1761074632821,1.5552,4012.8,4012.2,2.95944108]
[1761074633122,1.5552,4012.8,4012.3,2.49232941]
[1761074633325,1.5552,4012.8,4012.3,0.4671]
[1761074633522,1.5552,4012.8,4012.1,0.1683]
[1761074634089,1.5552,4012.8,4011.9,0.002]
[1761074634296,1.5552,4012.6,4011.9,0.002]
[1761074634550,1.5552,4012.4,4011.9,0.002]
[1761074634829,2.49233606,4012.3,4011.9,0.002]
[1761074634992,2.49250388,4012.1,4011.9,0.002]
[1761074635190,5.73052243,4012.0,4011.9,0.002]
[1761074635607,6.67300243,4012.0,4011.9,0.002]
[1761074636427,8.22820243,4012.0,4011.9,0.002]
[1761074636997,36.2290003,4012.0,4011.9,0.002]
[1761074637197,30.6280623,4012.0,4011.9,0.002]
[1761074637435,30.3605743,4012.0,4011.9,0.002]
[1761074637835,32.0388743,4012.0,4011.9,0.002]
[1761074637997,34.2162293,4012.0,4011.9,0.002]
[1761074638196,27.2861433,4012.0,4011.9,0.002]
[1761074639129,8.61908286,4012.0,4011.9,0.002]
[1761074639429,8.62208286,4012.0,4011.9,0.002]
[1761074639628,8.23120243,4012.0,4011.9,0.002]
[1761074640329,27.2891433,4012.0,4011.9,0.002]
[1761074641001,35.1076953,4012.0,4011.9,0.002]
[1761074641200,33.8675043,4012.0,4011.9,0.002]
[1761074641928,53.12905098,4012.0,4011.9,0.002]
[1761074642127,38.52894998,4012.0,4011.9,0.002]
[1761074642316,34.5802653,4012.0,4011.9,0.002]
[1761074642613,34.62873968,4012.0,4011.9,0.002]
[1761074642800,12.32979881,4012.0,4011.9,0.002]
[1761074643000,17.37241181,4012.0,4011.9,0.002]
[1761074644021,19.06243081,4012.0,4011.9,0.002]
[1761074644430,2.99996169,4011.1,4011.0,1e-08]
[1761074644603,2.99996169,4011.1,4008.4,1.31397349]
[1761074644604,0.50688,4010.0,4007.8,0.87598233]
[1761074644804,2.06208,4009.0,4007.7,0.4534]
[1761074645028,0.50688,4008.8,4007.7,0.4534]
[1761074645203,1.5552,4008.6,4007.7,0.4534]
[1761074645402,1.5552,4008.6,4007.3,0.1835]
[1761074645403,1.5552,4008.4,4007.3,0.1835]
[1761074645602,3.252,4008.5,4007.3,0.1835]
[1761074645603,0.50688,4008.3,4007.3,0.1835]
[1761074645911,3.255,4008.2,4007.5,2.49532127]
[1761074646234,3.255,4008.2,4007.4,0.4534]
[1761074646235,1.5552,4008.0,4007.4,0.4534]
[1761074646532,3.255,4007.9,4007.7,2.49514258]
[1761074646731,3.256,4008.1,4007.3,0.1835]
[1761074646901,1.5552,4008.6,4007.3,0.1835]
[1761074646902,3.256,4008.0,4007.5,2.49532127]
[1761074647098,4.26484228,4008.8,4007.6,2.49520424]
[1761074647303,4.26484228,4008.8,4007.4,2.94876379]
[1761074647304,2.49480862,4008.4,4007.5,0.4534]
[1761074647571,1.5552,4008.2,4007.5,2.948704]
[1761074647857,1.5552,4008.2,4007.3,0.49674898]
[1761074647858,0.50688,4008.1,4007.3,0.1835]
[1761074648163,1.5552,4008.0,4007.3,0.1835]
[1761074648473,1.5552,4008.0,4005.7,0.80649817]
[1761074648474,0.50688,4007.7,4005.7,0.80649817]
[1761074648639,2.06208,4007.7,4006.7,0.214]
[1761074648976,0.50688,4007.8,4006.9,2.49566816]
[1761074649270,0.2352,4008.3,4007.0,0.4534]
[1761074649556,4.55719518,4007.9,4006.7,0.6674]
[1761074649768,1.5552,4007.7,4006.9,2.49567867]
[1761074649924,1.5552,4007.7,4006.8,0.4534]
[1761074650122,0.50688,4007.6,4006.8,0.4534]
[1761074650324,3.26,4007.5,4006.7,2.70979022]
[1761074650524,1.5552,4007.4,4006.8,2.94914857]
[1761074650723,1.5552,4007.4,4006.9,0.4534]
[1761074651360,1.5552,4007.4,4006.7,0.214]
[1761074651735,1.5552,4007.4,4006.7,0.089]
[1761074651956,1.5552,4007.4,4006.7,3.03817306]
[1761074652264,1.5552,4007.4,4006.7,0.5424]
[1761074652466,1.5552,4007.4,4006.8,2.49573651]
[1761074652669,1.5552,4007.4,4006.8,2.495728]
[1761074652869,0.50688,4007.9,4007.3,0.1835]
[1761074653170,18.64749198,4009.1,4007.3,0.1835]
[1761074653171,0.39124113,4008.2,4007.7,2.49515176]
[1761074653342,3.259,4008.3,4007.5,0.02495321]
[1761074653537,0.2352,4009.2,4007.6,0.4534]
[1761074653874,4.04960198,4009.0,4007.9,2.49507223]
[1761074654165,2.49439123,4009.0,4008.1,2.49494144]
[1761074654363,3.259,4008.9,4008.3,2.49479328]
[1761074654765,3.259,4008.9,4008.2,0.1683]
[1761074654933,2.29728,4008.8,4007.3,0.1835]
[1761074655261,2.29728,4008.8,4005.9,0.1683]
[1761074655262,2.49533774,4007.5,4006.2,0.4534]
[1761074655462,3.266,4007.4,4006.6,2.49587419]
[1761074655759,2.49479411,4008.4,4007.4,2.67882796]
[1761074655963,1.5552,4008.2,4007.4,0.1835]
[1761074656159,4.04982035,4008.7,4007.4,3.13226879]
[1761074656328,7.31588614,4008.6,4007.7,2.49518238]
[1761074656530,1.5552,4008.5,4007.7,2.4951474]
[1761074656727,1.5552,4008.5,4007.8,2.49513382]
[1761074656966,1.5552,4008.5,4007.5,0.4534]
[1761074657196,4.0498988,4008.5,4007.6,2.49524012]
[1761074657335,1.5552,4008.5,4007.7,2.49519613]
[1761074657529,0.50688,4008.4,4007.5,0.4534]
[1761074657735,4.05007382,4008.3,4007.5,0.4534]
[1761074657931,1.5552,4008.1,4007.4,0.1835]
[1761074658171,1.5552,4008.1,4007.1,0.1835]
[1761074658172,2.49513826,4007.8,4007.1,0.1835]
[1761074658479,2.73028826,4007.9,4007.1,0.1835]
[1761074658663,0.2352,4007.9,4007.1,2.67904623]
[1761074658864,2.73029292,4007.9,4007.1,2.67904623]
[1761074659059,2.49513721,4007.8,4007.1,0.1835]
[1761074659260,2.73029016,4007.9,4007.1,0.1835]
[1761074659560,3.267,4008.0,4007.1,0.1835]
[1761074659736,5.7620202,4008.0,4007.1,2.67905241]
[1761074659935,5.7620202,4008.0,4007.2,2.49550797]
[1761074660171,3.267,4008.0,4007.2,0.464]
[1761074660331,3.267,4008.0,4007.4,2.49536738]
[1761074660536,3.267,4008.0,4007.3,0.464]
[1761074660736,3.267,4008.0,4007.3,2.95943885]
[1761074661162,0.50688,4008.5,4007.5,2.49526401]
[1761074661361,2.06208,4008.3,4007.5,2.49527327]
[1761074661565,0.50688,4008.3,4007.5,2.49527327]
[1761074661880,3.265,4008.2,4007.5,0.54547079]
[1761074662050,3.265,4008.1,4007.2,0.1835]
[1761074662465,3.265,4008.1,4007.2,0.6475]
[1761074662674,3.265,4008.1,4007.7,2.49513878]
[1761074662856,3.265,4008.1,4007.3,0.464]
[1761074663259,3.265,4008.1,4007.6,2.49523575]
[1761074663487,3.265,4008.1,4007.3,0.464]
[1761074663683,3.265,4008.1,4007.9,2.49504915]
[1761074663890,3.274,4008.1,4008.0,2.49500998]
[1761074664069,3.274,4008.1,4008.0,2.95580998]
[1761074664553,3.00115767,4009.2,4008.0,0.4608]
[1761074664554,3.275,4008.3,4008.0,0.4608]
[1761074664755,3.275,4008.3,4007.2,2.67895315]
[1761074664756,3.275,4008.3,4007.5,0.4608]
[1761074665199,0.2347,4008.9,4007.5,0.4608]
[1761074665200,0.2347,4008.9,4008.2,0.1683]
[1761074665366,3.274,4008.8,4008.2,0.1683]
[1761074665554,3.274,4008.8,4008.2,2.66317542]
[1761074665755,3.274,4008.7,4008.3,0.48574823]
[1761074665998,3.274,4008.7,4008.3,0.4608]
[1761074666201,3.274,4008.7,4008.3,2.9805645]
[1761074666487,3.274,4008.7,4008.4,0.4608]
[1761074666686,3.273,4008.7,4008.4,0.48574761]
[1761074666901,0.2066,4009.8,4008.4,0.48574761]
[1761074667103,2.49411819,4009.5,4008.6,2.49457466]
[1761074667261,5.76597651,4009.7,4008.8,2.49449319]
[1761074667262,2.49397651,4009.7,4008.8,2.49449319]
[1761074667456,2.49397651,4009.7,4008.5,2.49468965]
[1761074667457,3.272,4009.6,4008.9,0.02494449]
[1761074667781,0.2066,4009.8,4009.0,0.02494387]
[1761074667958,2.70053999,4009.8,4009.1,0.1683]
[1761074668158,7.32116888,4009.7,4009.1,0.1683]
[1761074668560,7.32115293,4009.7,4009.1,0.1683]
[1761074668760,4.8272,4009.7,4009.1,0.1683]
[1761074669456,7.32119297,4009.7,4009.1,0.1683]
[1761074669655,4.8272,4009.7,4009.1,2.66260885]
[1761074669861,0.4663,4010.1,4009.2,0.02494263]
[1761074670084,1.5552,4009.9,4008.2,0.6291]
[1761074670288,3.269,4009.8,4008.9,2.49440187]
[1761074670512,3.269,4009.8,4009.0,2.49437613]
[1761074670658,3.269,4009.8,4008.9,2.4944335]
[1761074670659,2.49395797,4009.7,4008.9,2.4944335]
[1761074671103,2.49395797,4009.7,4009.0,2.49437772]
[1761074671258,0.4663,4010.0,4008.3,0.71240628]
[1761074671259,3.27,4009.6,4008.9,2.49444984]
[1761074671462,3.27,4009.6,4009.1,2.49427371]
[1761074671692,2.49376871,4010.0,4009.2,2.49424691]
[1761074672006,3.269,4009.9,4009.2,2.49424691]
[1761074672363,5.76285743,4009.9,4009.2,2.49424691]
[1761074672563,2.4938918,4009.8,4009.1,0.1683]
[1761074672757,2.49395577,4009.7,4009.1,0.1683]
[1761074672977,3.269,4009.6,4009.1,0.1683]
[1761074673173,2.49391274,4009.8,4009.1,2.66260136]
[1761074673402,3.268,4009.7,4009.1,2.66260136]
[1761074673597,5.76196712,4009.7,4009.1,0.1683]
[1761074673895,2.49426355,4009.2,4008.4,2.49473939]
[1761074674097,3.267,4009.1,4008.3,0.4608]
[1761074674275,3.267,4009.1,4008.5,2.49465314]
[1761074674461,3.267,4009.1,4008.4,2.49475708]
[1761074674662,3.267,4009.1,4008.7,2.4945575]
[1761074675099,3.267,4009.1,4008.8,0.4608]
[1761074675266,3.267,4009.1,4008.8,2.95530261]
[1761074675467,3.267,4009.1,4008.8,0.4608]
[1761074675802,3.267,4009.1,4008.8,2.95530406]
[1761074675961,3.267,4009.1,4008.8,0.4608]
[1761074676167,3.267,4009.1,4008.4,0.77318571]
[1761074676861,3.267,4009.1,4008.5,2.49469825]
[1761074677257,3.267,4009.1,4008.6,2.49458423]
[1761074677701,3.267,4009.1,4008.7,2.49456325]
[1761074677902,3.267,4009.1,4008.8,2.49449317]
[1761074678999,3.268,4009.1,4008.8,2.49449317]
[1761074679166,3.268,4009.1,4008.8,2.95529317]
[1761074679368,3.268,4009.1,4008.8,0.4608]
[1761074680103,3.268,4009.1,4008.8,2.95529184]
[1761074680307,3.268,4009.1,4008.6,2.49463653]
[1761074680481,3.268,4009.1,4008.7,2.494568]
[1761074680880,3.268,4009.1,4008.8,0.4608]
[1761074681211,0.001,4009.1,4009.0,2.49438762]
[1761074681807,0.001,4009.1,4008.9,2.49442573]
[1761074682596,0.001,4009.1,4008.8,2.49450699]
[1761074682803,0.001,4009.1,4006.7,1.84913446]
[1761074682804,0.2347,4008.8,4007.5,0.4608]
[1761074683006,0.2347,4008.8,4007.1,0.002]
[1761074683007,1.5552,4008.3,4007.1,0.002]
[1761074683210,2.49550808,4007.2,4007.1,0.002]
[1761074683414,5.75650808,4007.2,4007.1,0.002]
[1761074685010,6.22280808,4007.2,4007.1,0.002]
[1761074685453,0.2347,4007.6,4006.2,0.4608]
[1761074685596,0.4663,4008.7,4007.3,2.49539159]
[1761074685792,0.4663,4008.7,4007.1,0.1835]
[1761074685793,2.49500302,4008.1,4007.1,0.1835]
[1761074686102,5.75504385,4008.0,4007.1,2.67906918]
[1761074686304,5.75507225,4007.9,4007.1,0.1835]
[1761074686524,3.26,4007.9,4007.2,2.95626519]
[1761074686889,3.26,4007.9,4007.1,0.49749132]
[1761074687093,5.75511532,4007.9,4007.1,0.49749132]
[1761074687395,5.75413804,4007.8,4007.1,0.1835]
[1761074687837,2.49519674,4007.7,4007.1,0.1835]
[1761074688212,3.259,4007.8,4007.1,0.1835]
[1761074688536,2.4953895,4007.4,4006.7,0.1835]
[1761074688690,3.258,4007.3,4006.7,0.1835]
[1761074689193,3.258,4007.3,4006.7,2.6792884]
[1761074689435,3.258,4007.3,4006.8,0.4608]
[1761074689641,3.258,4007.3,4007.1,2.49552037]
[1761074689819,3.258,4007.3,4006.8,0.4608]
[1761074690020,2.4952654,4007.6,4006.8,0.4608]
[1761074690219,2.4952654,4007.6,4006.8,2.95655518]
[1761074690418,3.257,4007.5,4006.8,2.95655518]
[1761074690630,0.2347,4008.2,4006.8,0.4608]
[1761074690927,0.2347,4008.8,4007.5,2.49530466]
[1761074690928,3.257,4008.1,4007.5,2.49530466]
[1761074691243,3.256,4008.0,4007.5,2.49530466]
[1761074691408,3.256,4007.9,4007.3,2.95622385]
[1761074691612,3.256,4007.8,4007.4,2.49533905]
[1761074691810,3.256,4007.7,4007.4,2.49533905]
[1761074692014,3.256,4007.7,4007.3,2.95623064]
[1761074692217,3.256,4007.7,4007.2,2.4954945]
[1761074692427,3.256,4007.7,4007.1,2.49555583]
[1761074692658,3.256,4007.7,4006.7,0.1835]
[1761074692815,3.7223,4007.7,4006.7,0.1835]
[1761074693014,2.49530423,4007.6,4006.7,2.6792985]
[1761074693211,6.21754292,4007.7,4006.7,0.1835]
[1761074693411,2.49542816,4007.4,4006.7,0.1835]
[1761074693637,2.49533538,4007.5,4006.7,0.1835]
[1761074693803,0.4663,4007.6,4006.7,0.1835]
[1761074694194,0.4663,4007.6,4006.0,0.1683]
[1761074694195,2.49563863,4007.0,4006.2,2.49612131]
[1761074694546,3.253,4006.9,4006.2,2.49612131]
[1761074695039,5.74870781,4006.9,4006.2,2.49613078]
[1761074695256,5.98200781,4006.9,4006.0,0.6192]
[1761074695544,3.914,4006.9,4006.0,0.1683]
[1761074695947,3.253,4006.9,4006.0,1.04217982]
[1761074696127,3.253,4006.9,4006.3,2.49605823]
[1761074697892,3.253,4006.9,4006.4,2.49598207]
[1761074698496,3.253,4006.9,4006.2,2.49609077]
[1761074698675,3.253,4006.9,4006.6,0.002]
[1761074699701,3.1564964,4007.3,4006.6,0.002]
[1761074699909,3.25,4007.2,4006.6,0.002]
[1761074700529,2.4958195,4006.7,4006.6,0.002]
[1761074700675,5.7458195,4006.7,4006.6,0.002]
[1761074700874,0.2333,4007.3,4006.6,0.002]
[1761074701220,0.001,4007.7,4006.6,0.002]
[1761074701221,3.249,4007.2,4006.6,0.002]
[1761074701367,3.25,4007.1,4006.6,0.002]
[1761074701571,5.74559249,4007.1,4006.6,0.002]
[1761074701792,2.4956531,4007.0,4006.6,0.002]
[1761074701982,5.74557039,4007.1,4006.6,0.002]
[1761074702880,3.25,4007.1,4006.6,0.002]
[1761074703406,3.249,4007.0,4006.8,2.49570712]
[1761074703781,3.249,4007.0,4006.9,0.4509]
[1761074704108,3.249,4007.3,4006.9,0.4509]
[1761074704471,0.001,4007.7,4007.2,0.1835]
[1761074704778,0.001,4007.7,4007.6,2.495259]
[1761074705273,0.001,4007.7,4007.6,2.946159]
[1761074705615,0.001,4007.7,4007.6,0.4509]
[1761074706502,0.001,4007.7,4007.6,2.946159]
[1761074707113,0.001,4007.7,4007.4,2.49532791]
[1761074707306,0.001,4007.7,4007.5,2.49530544]
[1761074707516,0.001,4007.7,4007.6,0.4509]
[1761074707728,0.001,4007.7,4007.2,0.1835]
[1761074708019,0.001,4007.7,4007.3,2.49541369]
[1761074708217,0.001,4007.7,4007.2,3.12988863]
[1761074708420,0.001,4007.7,4007.3,2.49544298]
[1761074708712,0.001,4007.7,4007.4,0.4509]
[1761074708878,0.001,4007.7,4007.4,0.31298919]
[1761074709208,0.001,4007.7,4007.4,0.4509]
[1761074709418,0.001,4007.7,4006.3,0.4509]
[1761074709419,0.4277,4007.6,4006.3,0.4509]
[1761074709587,3.246,4007.5,4006.3,0.4509]
[1761074709777,3.246,4007.5,4005.9,0.4509]
[1761074709982,2.49544581,4007.3,4006.4,2.49600235]
[1761074710183,2.92308466,4007.4,4006.4,2.49600235]
[1761074710583,2.49545992,4007.3,4006.5,2.49592228]
[1761074710777,2.49544205,4007.4,4006.2,0.002]
[1761074710983,2.49544205,4007.4,4006.6,2.49782882]
[1761074711214,2.49546232,4007.3,4006.6,2.49782882]
[1761074711443,2.49546232,4007.3,4006.6,0.002]
[1761074711582,5.74137798,4007.5,4006.6,2.94877581]
[1761074711786,2.49538544,4007.4,4006.7,2.49581496]
[1761074711987,3.246,4007.5,4006.6,0.4529]
[1761074712188,2.49544581,4007.3,4006.6,0.002]
[1761074712394,2.49550808,4007.2,4006.6,0.002]
[1761074713222,0.4277,4007.4,4006.6,0.002]
[1761074713516,2.9230993,4007.4,4006.6,0.002]
[1761074713718,2.49556807,4007.2,4006.6,0.002]
[1761074713919,3.246,4007.5,4006.6,0.002]
[1761074714091,2.49551028,4007.2,4006.6,0.002]
[1761074714286,0.4277,4007.4,4006.6,0.002]
[1761074714512,2.49568151,4007.0,4006.6,0.002]
[1761074714883,3.246,4007.5,4006.6,0.002]
[1761074715114,2.4958195,4006.7,4006.6,0.002]
[1761074715323,5.7388195,4006.7,4006.6,0.002]
[1761074715499,6.1665195,4006.7,4006.6,0.002]
[1761074717030,6.6733995,4006.7,4006.6,0.002]
[1761074717730,3.4303995,4006.7,4006.6,0.002]
[1761074717905,6.6723995,4006.7,4006.6,0.002]
[1761074718963,3.4303995,4006.7,4006.6,0.002]
[1761074719135,6.6723995,4006.7,4006.6,0.002]
[1761074719898,2.9235195,4006.7,4006.6,0.002]
[1761074720095,6.1635195,4006.7,4006.6,0.002]
[1761074720333,5.7358195,4006.7,4006.6,0.002]
[1761074720629,2.49579869,4006.8,4006.6,0.002]
[1761074720630,2.49578378,4006.8,4006.6,0.002]
[1761074720799,6.34,4007.4,4006.6,0.002]
[1761074721000,4.05058077,4007.5,4006.6,0.002]
[1761074721238,2.4955787,4007.1,4006.6,0.002]
[1761074721433,0.4279,4007.6,4006.6,0.02695881]
[1761074721636,3.241,4007.5,4006.8,2.49575721]
[1761074722333,5.73633495,4007.5,4006.8,2.49575721]
[1761074723361,3.241,4007.5,4006.9,2.49568142]
[1761074723563,3.241,4007.5,4007.0,2.49562842]
[1761074723859,3.239,4007.6,4007.4,0.1835]
[1761074724162,3.239,4007.6,4007.1,2.92862597]
[1761074724522,0.001,4007.7,4007.1,0.43306284]
[1761074724727,0.001,4007.7,4007.6,2.495259]
[1761074725158,0.001,4007.7,4007.6,2.945059]
[1761074725325,0.001,4007.7,4007.6,2.495259]
[1761074726169,0.001,4007.7,4007.6,2.945059]
[1761074728066,0.001,4007.7,4007.5,2.4953087]
[1761074728253,2.49532127,4007.5,4006.7,2.49581145]
[1761074728452,0.4646,4007.4,4006.2,0.002]
[1761074728865,2.49576941,4006.8,4006.2,0.002]
[1761074729032,3.238,4006.7,4006.2,0.002]
[1761074729234,5.7338195,4006.7,4006.2,0.002]
[1761074729635,3.238,4006.7,4006.2,0.002]
[1761074729967,3.238,4006.7,4006.3,2.49606323]
[1761074730166,2.49557861,4007.1,4006.3,2.49606323]
[1761074730467,2.49570051,4006.9,4006.2,2.49812605]
[1761074730767,3.238,4007.1,4006.7,2.9456195]
[1761074731230,6.34,4007.5,4006.5,2.49590566]
[1761074731231,2.49547417,4007.3,4006.5,2.49590566]
[1761074731436,3.237,4007.1,4006.5,2.49590566]
[1761074731743,5.73261321,4007.1,4006.4,2.49600399]
[1761074731948,3.237,4007.1,4006.4,2.49600399]
[1761074732348,3.237,4007.1,4006.5,2.49592821]
[1761074732575,3.237,4007.1,4006.6,2.49786411]
[1761074732865,0.4646,4007.4,4006.6,0.002]
[1761074733038,3.237,4007.3,4006.8,2.49575381]
[1761074733231,6.34,4007.5,4006.8,2.49575381]
[1761074733431,3.236,4007.4,4006.8,2.49575381]
[1761074733782,3.236,4007.4,4006.6,2.5228393]
[1761074733783,3.236,4007.3,4006.9,2.49565236]
[1761074733995,3.236,4007.2,4006.9,2.49565236]
[1761074734352,3.236,4007.2,4007.0,2.49562801]
[1761074734747,2.49624084,4007.7,4007.0,0.02495632]
[1761074734748,0.001,4007.7,4007.0,0.02495632]
[1761074734949,0.001,4007.7,4007.6,2.495259]
[1761074735356,0.001,4007.7,4007.6,2.945059]
[1761074736048,0.001,4007.7,4007.6,2.97001159]
[1761074738410,0.001,4007.7,4007.6,2.945059]
[1761074739203,0.001,4007.7,4007.6,6.945059]
[1761074739392,0.001,4007.7,4007.6,8.21260116]
[1761074744301,0.001,4007.7,4007.6,9.76780116]
[1761074744629,0.001,4008.2,4007.6,9.76780116]
[1761074744630,0.001,4008.2,4008.1,2.49494773]
[1761074744775,0.001,4008.2,4008.1,27.55141946]
[1761074745284,0.001,4008.2,4008.1,8.36542773]
[1761074745486,0.001,4008.2,4008.1,13.62068077]
[1761074748188,0.001,4008.2,4008.1,32.8066725]
[1761074751425,0.001,4008.2,4008.1,9.88380077]
[1761074751629,0.001,4008.2,4008.1,13.10880077]
[1761074753852,0.001,4008.2,4008.1,12.65900077]
[1761074754034,0.001,4008.2,4008.1,13.12430077]
[1761074754359,0.001,4008.2,4008.1,12.65900077]
[1761074754660,0.001,4008.2,4008.1,8.65900077]
[1761074754804,0.001,4008.2,4008.1,9.12430077]
[1761074755229,0.001,4008.2,4008.1,3.75020077]
[1761074755449,0.001,4008.2,4008.1,5.71894773]
[1761074755618,0.001,4008.2,4008.1,6.18424773]
[1761074758829,0.001,4008.2,4008.1,7.73944773]
[1761074759927,0.001,4008.2,4008.1,7.27414773]
[1761074760548,0.001,4008.2,4008.1,7.73944773]
[1761074760853,0.001,4008.2,4008.1,8.77575532]
[1761074762824,0.001,4008.2,4008.1,8.31045532]
[1761074763861,0.001,4008.2,4008.1,8.77575532]
[1761074764085,0.001,4008.2,4008.1,8.31045532]
[1761074764261,0.001,4008.2,4008.1,10.08972881]
[1761074764630,0.001,4008.2,4008.1,13.22660881]
[1761074764839,0.001,4008.2,4008.1,11.91263532]
[1761074765537,0.001,4008.2,4008.1,22.49544578]
[1761074766065,0.001,4008.2,4008.1,19.47098578]
[1761074766249,0.001,4008.2,4008.1,17.71085132]
[1761074766447,0.001,4008.2,4008.1,11.06206018]
[1761074766650,0.001,4008.2,4007.8,2.49513448]
[1761074766827,0.001,4008.2,4007.7,1.77942486]
[1761074766828,0.4749,4008.2,4008.1,2.49494773]
[1761074767223,0.001,4008.2,4008.1,5.71594773]
[1761074768088,0.001,4008.2,4008.1,5.84454773]
[1761074768246,0.001,4008.2,4008.1,7.86504773]
[1761074768579,0.001,4008.2,4008.1,9.10394902]
[1761074768782,0.001,4008.2,4008.1,12.24082902]
[1761074768954,0.001,4008.2,4008.1,9.61082902]
[1761074769157,0.001,4008.2,4008.1,8.63864902]
[1761074769664,0.001,4008.2,4008.1,9.10394902]
[1761074770768,0.001,4008.2,4008.1,8.63864902]
[1761074770972,0.001,4008.2,4008.1,8.51004902]
[1761074771991,0.001,4008.2,4008.1,9.10394902]
[1761074776262,0.001,4008.2,4008.1,12.24082902]
[1761074776468,0.001,4008.2,4008.1,14.91682902]
[1761074777366,0.001,4008.2,4008.1,12.24082902]
[1761074777572,0.001,4008.2,4008.1,15.88684002]
[1761074778577,0.00011166,4008.2,4008.1,15.88684002]
[1761074778780,0.00011166,4008.2,4008.1,18.1223646]
[1761074779182,0.00011166,4008.2,4008.1,15.88684002]
[1761074781301,0.001,4008.7,4008.6,3.00151653]
[1761074781481,0.001,4008.7,4008.6,8.58433949]
[1761074781682,0.001,4008.7,4008.6,9.04083949]
[1761074783483,0.001,4008.7,4008.6,7.02913949]
[1761074783678,0.001,4008.7,4008.6,7.48713949]
[1761074783922,0.001,4008.7,4008.6,9.04233949]
[1761074785898,0.001,4008.7,4008.6,11.21433949]
[1761074786418,0.001,4008.7,4008.6,11.67233949]
[1761074786655,0.001,4008.7,4008.6,13.4511788]
[1761074786805,0.001,4008.7,4008.6,16.51708349]
[1761074787198,0.001,4008.7,4008.6,15.95424749]
[1761074791044,0.4468,4009.8,4009.7,2.49395216]
[1761074791201,0.4468,4009.8,4009.7,6.20175043]
[1761074791818,0.237,4010.0,4009.9,2.49382777]
[1761074792499,0.6838,4010.0,4009.9,2.49382777]
[1761074792701,0.4478,4011.0,4010.2,2.49364121]
[1761074792931,0.4478,4011.0,4010.9,2.49320601]
[1761074793235,0.4478,4011.0,4010.9,5.70120601]
[1761074794435,0.001,4011.0,4010.9,5.70120601]
[1761074795814,0.4478,4011.0,4010.9,5.70120601]
[1761074797600,0.001,4011.0,4010.9,5.70120601]
[1761074797801,0.001,4011.0,4010.9,6.52065518]
[1761074798026,0.4478,4011.0,4010.9,6.52065518]
[1761074798554,0.001,4011.0,4010.9,6.52065518]
[1761074799360,0.001,4011.0,4010.9,8.07585518]
[1761074801838,0.001,4011.0,4010.1,1.33300225]
[1761074801839,0.001,4011.0,4009.7,1.83180052]
[1761074802054,0.1896,4009.8,4009.7,2.49395216]
[1761074802364,0.1896,4009.8,4009.7,7.25515216]
[1761074802549,0.1896,4010.9,4010.8,2.49326817]
[1761074803059,0.1896,4010.9,4010.7,2.49331372]
[1761074803650,0.1896,4010.9,4010.8,2.49326817]
[1761074804188,0.1896,4010.9,4010.3,3.206]
[1761074804348,0.1896,4010.9,4010.3,3.5266]
[1761074804554,0.1896,4010.9,4010.5,2.49343373]
[1761074804726,0.1896,4010.9,4010.3,5.69952715]
[1761074805054,0.1896,4010.9,4010.6,2.49338977]
[1761074805679,0.1896,4010.9,4010.8,2.49326817]
[1761074806038,0.1896,4010.9,4010.3,3.206]
[1761074806264,0.1896,4010.9,4010.8,2.49326817]
[1761074808252,0.1896,4010.9,4010.3,3.206]
[1761074808458,0.1896,4010.9,4010.6,2.49337303]
[1761074808643,0.1896,4010.9,4010.3,3.206]
[1761074808644,0.1896,4010.9,4010.7,2.49331756]
[1761074808844,0.1896,4010.9,4010.3,3.206]
[1761074808845,0.1896,4010.9,4010.5,2.4934087]
[1761074809044,0.1896,4010.9,4010.6,2.49335905]
[1761074809463,0.1896,4010.9,4010.5,2.49343347]
[1761074809990,0.1896,4010.9,4010.8,2.49326817]
[1761074810689,0.1896,4010.9,4010.3,3.206]
[1761074810989,0.1896,4010.9,4010.5,2.493409]
[1761074811177,0.1896,4010.9,4010.6,2.49336935]
[1761074811670,0.1896,4010.9,4010.7,2.49330674]
[1761074812182,0.1896,4010.9,4010.5,2.49344333]
[1761074812183,0.1896,4010.9,4010.6,2.49336986]
[1761074812388,0.1896,4010.9,4010.1,0.002]
[1761074812573,2.49338329,4010.7,4010.1,0.002]
[1761074812903,2.49326817,4010.8,4010.1,0.002]
[1761074813083,2.49344957,4010.6,4010.1,0.002]
[1761074813283,2.49347323,4010.5,4010.1,0.002]
[1761074813598,1.5552,4010.8,4010.1,0.002]
[1761074813903,2.49326853,4010.8,4010.1,0.002]
[1761074814108,1.5552,4010.8,4010.1,0.002]
[1761074814308,2.49340723,4010.6,4010.1,0.002]
[1761074814600,2.49335632,4010.7,4010.1,0.002]
[1761074815270,2.49339831,4010.6,4010.1,0.002]
[1761074815580,2.49346153,4010.5,4010.1,0.002]
[1761074816084,7.25449488,4010.8,4010.1,0.002]
[1761074816085,2.49333102,4010.7,4010.1,0.002]
[1761074816272,2.68281572,4010.9,4010.1,0.002]
[1761074816479,2.49337748,4010.7,4010.1,0.002]
[1761074817168,2.49340487,4010.6,4010.1,0.002]
[1761074817697,2.49334958,4010.7,4010.1,0.002]
[1761074819086,5.69928885,4010.8,4010.1,0.002]
[1761074819287,2.49334377,4010.7,4010.1,0.002]
[1761074820006,2.49334377,4010.7,4010.1,2.49569432]